fUST/lending_fUST_20250717
["ID","MTS","AMOUNT","RATE_DAILY","PERIOD"]
[372685923,1752741046880,-460.0,0.00019909,2]
[372685925,1752741046889,-460.0,0.00019909,2]
[372685926,1752741046898,-460.0,0.00019909,2]
[372685928,1752741046907,-616.29,0.00019909,2]
[372685930,1752741046917,-460.0,0.00019909,2]
[372685932,1752741046925,-460.0,0.00019909,2]
[372685934,1752741046935,-460.0,0.00019909,2]
[372685936,1752741046944,-460.0,0.00019909,2]
[372685939,1752741046955,-1151.77,0.0001991,2]
[372685941,1752741046965,-2936.59,0.0001991,2]
[372685943,1752741046974,-964.0,0.0001991,2]
[372685944,1752741046984,-706.77,0.00019911,2]
[372685946,1752741046994,-706.77,0.00019911,2]
[372685948,1752741047004,-706.77,0.00019911,2]
[372685950,1752741047014,-706.77,0.00019911,2]
[372685952,1752741047023,-706.96,0.00019911,2]
[372685954,1752741047033,-420.0,0.00019911,2]
[372685956,1752741047042,-233.0,0.00019913,2]
[372685958,1752741047051,-2000.0,0.00019916,2]
[372685960,1752741047062,-800.0,0.00019955,2]
[372685962,1752741047071,-443.13346081,0.00019973,2]
[372685964,1752741047081,-500.0,0.00019973,2]
[372685966,1752741047091,-500.0,0.00019973,2]
[372685968,1752741047101,-500.0,0.00019973,2]
[372685970,1752741047111,-500.0,0.00019973,2]
[372685972,1752741047121,-500.0,0.00019973,2]
[372685974,1752741047130,-500.0,0.00019973,2]
[372685976,1752741047139,-345.01998582,0.00019973,2]
[372685978,1752741047149,-500.0,0.00019973,2]
[372685980,1752741047159,-618.5967777,0.00019973,2]
[372685981,1752741047168,-500.0,0.00019973,2]
[372685982,1752741047178,-501.47029748,0.00019973,2]
[372685983,1752741047187,-500.0,0.00019973,2]
[372685984,1752741047196,-500.0,0.00019973,2]
[372685985,1752741047205,-500.0,0.00019973,2]
[372685986,1752741047217,-160.10287166,0.00019973,2]
[372685987,1752741047228,-158.22056861,0.00019973,2]
[372685989,1752741047238,-522.70810626,0.00019973,2]
[372685990,1752741047248,-500.0,0.00019973,2]
[372685992,1752741047258,-550.49386033,0.00019973,2]
[372685995,1752741047268,-521.83916639,0.00019973,2]
[372685997,1752741047278,-500.45452731,0.00019973,2]
[372685999,1752741047287,-501.66459955,0.00019973,2]
[372686001,1752741047297,-500.0,0.00019973,2]
[372686003,1752741047308,-500.0,0.00019973,2]
[372686005,1752741047318,-313.97699375,0.00019973,2]
[372686007,1752741047328,-500.0,0.00019973,2]
[372686009,1752741047338,-500.22689423,0.00019973,2]
[372686011,1752741047346,-500.0,0.00019973,2]
[372686013,1752741047356,-500.0,0.00019973,2]
[372686015,1752741047366,-500.0,0.00019973,2]
[372686017,1752741047375,-500.0,0.00019973,2]
[372686019,1752741047384,-500.0,0.00019973,2]
[372686021,1752741047394,-500.0,0.00019973,2]
[372686023,1752741047403,-500.0,0.00019973,2]
[372686025,1752741047413,-172.77631336,0.00019973,2]
[372686027,1752741047424,-500.0,0.00019973,2]
[372686029,1752741047433,-500.0,0.00019973,2]
[372686031,1752741047443,-500.0,0.00019973,2]
[372686033,1752741047453,-500.0,0.00019973,2]
[372686035,1752741047462,-500.0,0.00019973,2]
[372686037,1752741047472,-500.0,0.00019973,2]
[372686039,1752741047481,-500.0,0.00019973,2]
[372686041,1752741047491,-500.0,0.00019973,2]
[372686043,1752741047499,-500.0,0.00019973,2]
[372686045,1752741047509,-500.0,0.00019973,2]
[372686047,1752741047518,-500.0,0.00019973,2]
[372686049,1752741047528,-500.0,0.00019973,2]
[372686052,1752741047539,-500.0,0.00019973,2]
[372686054,1752741047548,-93985.0840916,0.00019989,2]
[372686056,1752741047559,-151.0,0.00019989,2]
[372686058,1752741047568,-204.467065,0.00019989,2]
[372686060,1752741047578,-519.977024,0.0001999,2]
[372686062,1752741047588,-618.0,0.0002,2]
[372686064,1752741047598,-151.0,0.0002,2]
[372686066,1752741047608,-672.0,0.0002,2]
[372686068,1752741047617,-151.0,0.0002,2]
[372686069,1752741047627,-151.0,0.0002,2]
[372686072,1752741047638,-151.0,0.0002,2]
[372686073,1752741047648,-453.844906,0.0002,2]
[372686075,1752741047658,-173.4165,0.0002,2]
[372686077,1752741047668,-11228.00597634,0.0002,2]
[372686079,1752741047677,-8180.24025147,0.0002,2]
[372686081,1752741047687,-3193.05920576,0.0002,2]
[372686083,1752741047697,-3558.56393114,0.0002,20]
[372686085,1752741047707,-395.588109,0.0002,7]
[372686087,1752741047716,-362.55465695,0.0002,2]
[372686089,1752741047726,-1305.75247219,0.0002,5]
[372686091,1752741047735,-307.0,0.0002,2]
[372686093,1752741047744,-71490.45387359,0.0002,2]
[372686095,1752741047754,-151.0,0.0002,2]
[372686097,1752741047763,-300.0,0.0002,2]
[372686100,1752741047773,-233.0,0.00020001,2]
[372686102,1752741047783,-233.0,0.00020008,2]
[372686104,1752741047793,-1680.0,0.00020008,2]
[372686106,1752741047802,-250.0,0.00020043,2]
[372686108,1752741047813,-233.0,0.00020065,2]
[372686110,1752741047822,-1500.0,0.00020096,2]
[372686112,1752741047833,-2000.0,0.000201,15]
[372686114,1752741047843,-460.0,0.00020173,2]
[372686116,1752741047853,-460.0,0.00020173,2]
[372686118,1752741047864,-1544.86,0.00020173,2]
[372686120,1752741047874,-4127.19,0.00020175,2]
[372686122,1752741047884,-3032.58,0.00020175,2]
[372686124,1752741047894,-1391.3,0.00020175,2]
[372686126,1752741047903,-636.0,0.00020175,2]
[372686128,1752741047913,-460.0,0.00020175,2]
[372686146,1752741048067,-1999.44,0.00020175,2]
[372686148,1752741048078,-989.32,0.00020175,2]
[372686150,1752741048087,-799.42,0.00020175,2]
[372686152,1752741048098,-460.0,0.00020176,2]
[372686154,1752741048108,-460.0,0.00020177,2]
[372686156,1752741048117,-490.51942276,0.00020177,2]
[372686158,1752741048126,-660.61,0.00020177,2]
[372686160,1752741048137,-555.36,0.00020177,2]
[372686162,1752741048146,-752.55,0.00020177,2]
[372686164,1752741048156,-479.57,0.00020177,2]
[372686166,1752741048165,-460.0,0.00020177,2]
[372686168,1752741048174,-460.0,0.00020177,2]
[372686170,1752741048184,-532.92,0.00020177,2]
[372686172,1752741048194,-460.0,0.00020177,2]
[372686174,1752741048203,-2933.94,0.00020182,2]
[372686176,1752741048216,-660.52,0.00020182,2]
[372686179,1752741048232,-460.0,0.00020182,2]
[372686180,1752741048242,-1144.87,0.00020182,2]
[372686183,1752741048252,-1120.3,0.00020182,2]
[372686185,1752741048262,-1925.87,0.00020182,2]
[372686187,1752741048274,-721.79,0.00020182,2]
[372686189,1752741048284,-460.0,0.00020182,2]
[372686191,1752741048295,-569.8,0.00020183,2]
[372686193,1752741048306,-565.69,0.00020183,2]
[372686195,1752741048316,-513.02,0.00020183,2]
[372686197,1752741048325,-460.0,0.00020183,2]
[372686199,1752741048335,-460.0,0.00020183,2]
[372686201,1752741048344,-460.0,0.00020183,2]
[372686203,1752741048353,-460.0,0.00020183,2]
[372686205,1752741048363,-616.29,0.00020183,2]
[372686207,1752741048372,-460.0,0.00020183,2]
[372686209,1752741048381,-460.0,0.00020183,2]
[372686211,1752741048391,-460.0,0.00020183,2]
[372686213,1752741048400,-458.34774941,0.00020183,2]
[372686215,1752741048410,-1151.77,0.00020184,2]
[372686217,1752741048420,-2936.59,0.00020184,2]
[372686219,1752741048429,-964.0,0.00020184,2]
[372686221,1752741048440,-825.896201,0.00020187,2]
[372686223,1752741048449,-2155.0,0.00020196,2]
[372686225,1752741048458,-972.972,0.00020196,2]
[372686227,1752741048468,-407.0,0.00020196,2]
[372686229,1752741048478,-414.376,0.00020196,2]
[372686231,1752741048487,-647.0,0.00020196,2]
[372686233,1752741048496,-800.0,0.00020197,2]
[372686235,1752741048505,-151.0,0.00020197,2]
[372686237,1752741048514,-942.10790046,0.00020213,2]
[372686239,1752741048524,-800.0,0.00020233,2]
[372686241,1752741048533,-500.0,0.0002026,2]
[372686243,1752741048544,-618.0,0.00020274,2]
[372686245,1752741048555,-198.0,0.00020274,2]
[372686247,1752741048566,-672.0,0.00020274,2]
[372686249,1752741048576,-6199.21004781,0.0002028,3]
[372686251,1752741048587,-184.38308539,0.0002028,3]
[372686253,1752741048597,-476.16111942,0.0002028,3]
[372686255,1752741048607,-260.0,0.00020289,2]
[372686257,1752741048616,-1449.636299,0.00020319,8]
[372686259,1752741048626,-1000.0,0.00020321,2]
[372686261,1752741048635,-500.0,0.00020321,2]
[372686263,1752741048645,-207.4,0.00020335,2]
[372686265,1752741048655,-342.27111921,0.00020335,2]
[372686267,1752741048664,-1657.09429368,0.0002044,2]
[372686269,1752741048673,-6209.03560218,0.00020441,2]
[372686271,1752741048683,-460.0,0.00020447,2]
[372686273,1752741048692,-460.0,0.00020447,2]
[372686275,1752741048701,-1544.86,0.00020447,2]
[372686277,1752741048710,-4127.19,0.00020449,2]
[372686279,1752741048719,-3032.58,0.00020449,2]
[372686281,1752741048729,-1391.3,0.00020449,2]
[372686283,1752741048739,-636.0,0.00020449,2]
[372686285,1752741048749,-460.0,0.00020449,2]
[372686287,1752741048762,-1999.44,0.00020449,2]
[372686289,1752741048772,-989.32,0.00020449,2]
[372686291,1752741048781,-799.42,0.00020449,2]
[372686293,1752741048792,-460.0,0.0002045,2]
[372686295,1752741048811,-151.0,0.0002045,2]
[372686297,1752741048821,-460.0,0.00020451,2]
[372686299,1752741048830,-660.61,0.00020451,2]
[372686301,1752741048840,-555.36,0.00020451,2]
[372686303,1752741048852,-752.55,0.00020451,2]
[372686305,1752741048862,-479.57,0.00020451,2]
[372686307,1752741048871,-460.0,0.00020451,2]
[372686309,1752741048880,-460.0,0.00020451,2]
[372686311,1752741048889,-532.92,0.00020451,2]
[372686313,1752741048899,-460.0,0.00020451,2]
[372686315,1752741048909,-389.9,0.00020454,3]
[372686317,1752741048918,-2933.94,0.00020456,2]
[372686319,1752741048928,-660.52,0.00020456,2]
[372686321,1752741048937,-460.0,0.00020456,2]
[372686323,1752741048950,-1144.87,0.00020456,2]
[372686325,1752741048960,-1120.3,0.00020456,2]
[372686327,1752741048970,-1925.87,0.00020456,2]
[372686330,1752741048980,-721.79,0.00020456,2]
[372686332,1752741048990,-460.0,0.00020456,2]
[372686334,1752741048999,-569.8,0.00020457,2]
[372686336,1752741049009,-565.69,0.00020457,2]
[372686338,1752741049018,-513.02,0.00020457,2]
[372686340,1752741049029,-460.0,0.00020457,2]
[372686342,1752741049038,-460.0,0.00020457,2]
[372686344,1752741049048,-460.0,0.00020457,2]
[372686346,1752741049059,-460.0,0.00020457,2]
[372686348,1752741049069,-616.29,0.00020457,2]
[372686350,1752741049080,-460.0,0.00020457,2]
[372686352,1752741049090,-460.0,0.00020457,2]
[372686354,1752741049100,-460.0,0.00020457,2]
[372686356,1752741049111,-1151.77,0.00020458,2]
[372686358,1752741049121,-151.0,0.00020458,2]
[372686360,1752741049131,-151.0,0.00020458,2]
[372686362,1752741049140,-2936.59,0.00020458,2]
[372686364,1752741049151,-151.0,0.00020458,2]
[372686366,1752741049161,-151.0,0.00020458,2]
[372686368,1752741049170,-964.0,0.00020458,2]
[372686370,1752741049180,-2390.040963,0.00020458,2]
[372686372,1752741049189,-2390.040963,0.00020458,2]
[372686374,1752741049199,-151.0,0.00020458,2]
[372686376,1752741049208,-151.0,0.00020458,2]
[372686378,1752741049221,-151.0,0.00020458,2]
[372686380,1752741049230,-405.404634,0.00020458,2]
[372686382,1752741049239,-151.0,0.00020458,2]
[372686384,1752741049248,-405.404634,0.00020458,2]
[372686386,1752741049259,-151.0,0.00020458,2]
[372686388,1752741049270,-151.0,0.00020458,2]
[372686390,1752741049279,-151.0,0.00020458,2]
[372686392,1752741049288,-2500.0,0.00020464,2]
[372686394,1752741049299,-1000.0,0.00020521,2]
[372686396,1752741049309,-1000.0,0.00020521,2]
[372686398,1752741049318,-1000.0,0.00020521,2]
[372686400,1752741049327,-1000.0,0.00020521,2]
[372686402,1752741049337,-1000.0,0.00020521,2]
[372686404,1752741049346,-1000.0,0.00020521,2]
[372686406,1752741049355,-1000.0,0.00020521,2]
[372686408,1752741049364,-1003.77600688,0.00020521,2]
[372686410,1752741049373,-1000.0,0.00020521,2]
[372686412,1752741049383,-386.27860423,0.00020521,2]
[372686414,1752741049393,-1000.0,0.00020521,2]
[372686416,1752741049403,-500.0,0.00020521,2]
[372686418,1752741049412,-1000.0,0.00020521,2]
[372686420,1752741049422,-1000.0,0.00020521,2]
[372686422,1752741049431,-425.12574074,0.00020521,2]
[372686424,1752741049440,-1074.65458591,0.00020521,2]
[372686426,1752741049449,-1000.0,0.00020521,2]
[372686428,1752741049459,-1000.0,0.00020521,2]
[372686430,1752741049469,-1000.0,0.00020521,2]
[372686432,1752741049478,-1000.0,0.00020521,2]
[372686434,1752741049488,-1000.0,0.00020521,2]
[372686436,1752741049497,-1000.0,0.00020521,2]
[372686438,1752741049508,-1000.0,0.00020521,2]
[372686440,1752741049517,-1000.0,0.00020521,2]
[372686442,1752741049527,-1001.98100719,0.00020521,2]
[372686444,1752741049538,-1000.0,0.00020521,2]
[372686446,1752741049547,-501.01117772,0.00020521,2]
[372686448,1752741049556,-1000.0,0.00020521,2]
[372686450,1752741049566,-1000.0,0.00020521,2]
[372686452,1752741049575,-1000.0,0.00020521,2]
[372686454,1752741049585,-1000.0,0.00020521,2]
[372686456,1752741049594,-1000.0,0.00020521,2]
[372686458,1752741049603,-501.97479051,0.00020521,2]
[372686460,1752741049613,-1000.0,0.00020521,2]
[372686462,1752741049623,-618.0,0.00020548,2]
[372686464,1752741049632,-672.0,0.00020548,2]
[372686466,1752741049641,-274.124406,0.00020555,2]
[372686468,1752741049650,-274.124406,0.00020555,2]
[372686470,1752741049660,-544.433851,0.00020555,2]
[372686472,1752741049669,-544.433851,0.00020555,2]
[372686474,1752741049678,-152.174213,0.00020555,2]
[372686476,1752741049688,-152.174213,0.00020555,2]
[372686478,1752741049697,-151.0,0.00020555,2]
[372686480,1752741049706,-151.0,0.00020555,2]
[372686482,1752741049716,-515.82,0.00020588,2]
[372686484,1752741049725,-233.0,0.00020627,2]
[372686486,1752741049734,-2000.0,0.00020644,2]
[372686488,1752741049743,-191.78468271,0.00020721,2]
[372686490,1752741049754,-460.0,0.00020721,2]
[372686492,1752741049764,-1544.86,0.00020721,2]
[372686494,1752741049774,-4127.19,0.00020723,2]
[372686496,1752741049783,-3032.58,0.00020723,2]
[372686498,1752741049792,-1391.3,0.00020723,2]
[372686500,1752741049802,-636.0,0.00020723,2]
[372686502,1752741049811,-460.0,0.00020723,2]
[372686504,1752741049821,-1999.44,0.00020723,2]
[372686506,1752741049830,-989.32,0.00020723,2]
[372686508,1752741049839,-799.42,0.00020723,2]
[372686510,1752741049848,-460.0,0.00020724,2]
[372686512,1752741049859,-460.0,0.00020725,2]
[372686514,1752741049869,-660.61,0.00020725,2]
[372686516,1752741049879,-555.36,0.00020725,2]
[372686518,1752741049889,-752.55,0.00020725,2]
[372686520,1752741049899,-479.57,0.00020725,2]
[372686522,1752741049908,-460.0,0.00020725,2]
[372686524,1752741049917,-460.0,0.00020725,2]
[372686526,1752741049927,-532.92,0.00020725,2]
[372686528,1752741049937,-460.0,0.00020725,2]
[372686530,1752741049947,-519.977024,0.00020728,3]
[372686532,1752741049956,-408.454844,0.0002073,2]
[372686534,1752741049965,-408.454844,0.0002073,2]
[372686536,1752741049975,-2933.94,0.0002073,2]
[372686538,1752741049987,-660.52,0.0002073,2]
[372686540,1752741049996,-460.0,0.0002073,2]
[372686542,1752741050005,-1144.87,0.0002073,2]
[372686544,1752741050015,-1120.3,0.0002073,2]
[372686546,1752741050024,-1925.87,0.0002073,2]
[372686548,1752741050033,-721.79,0.0002073,2]
[372686550,1752741050043,-460.0,0.0002073,2]
[372686552,1752741050052,-569.8,0.00020731,2]
[372686555,1752741050063,-565.69,0.00020731,2]
[372686557,1752741050072,-151.0,0.00020731,2]
[372686559,1752741050082,-513.02,0.00020731,2]
[372686561,1752741050093,-460.0,0.00020731,2]
[372686563,1752741050103,-151.0,0.00020731,2]
[372686564,1752741050112,-151.0,0.00020731,2]
[372686567,1752741050122,-151.0,0.00020731,2]
[372686568,1752741050132,-151.0,0.00020731,2]
[372686571,1752741050141,-460.0,0.00020731,2]
[372686573,1752741050151,-171.56638,0.00020731,2]
[372686574,1752741050161,-171.56638,0.00020731,2]
[372686577,1752741050181,-460.0,0.00020731,2]
[372686579,1752741050190,-344.54202562,0.00020731,2]
[372686581,1752741050200,-616.29,0.00020731,2]
[372686583,1752741050210,-460.0,0.00020731,2]
[372686585,1752741050222,-460.0,0.00020731,2]
[372686587,1752741050232,-460.0,0.00020731,2]
[372686589,1752741050241,-1151.77,0.00020732,2]
[372686591,1752741050250,-2936.59,0.00020732,2]
[372686593,1752741050259,-964.0,0.00020732,2]
[372686595,1752741050269,-151.0,0.00020734,2]
[372686597,1752741050279,-151.0,0.00020734,2]
[372686599,1752741050288,-151.0,0.00020734,2]
[372686601,1752741050298,-151.0,0.00020734,2]
[372686603,1752741050308,-151.0,0.00020734,2]
[372686605,1752741050317,-151.0,0.00020734,2]
[372686607,1752741050326,-151.0,0.00020734,2]
[372686609,1752741050336,-151.0,0.00020734,2]
[372686611,1752741050346,-453.844906,0.00020734,2]
[372686613,1752741050356,-745.09172714,0.00020734,2]
[372686615,1752741050366,-151.0,0.00020738,2]
[372686617,1752741050375,-6555.55619115,0.00020739,2]
[372686619,1752741050385,-151.0,0.00020806,2]
[372686621,1752741050394,-151.0,0.00020806,2]
[372686623,1752741050403,-151.0,0.00020806,2]
[372686625,1752741050413,-155.586581,0.00020806,2]
[372686627,1752741050422,-155.586581,0.00020806,2]
[372686629,1752741050433,-153.322677,0.00020806,2]
[372686631,1752741050442,-153.322677,0.00020806,2]
[372686633,1752741050451,-317.0,0.00020814,2]
[372686635,1752741050460,-618.0,0.00020822,2]
[372686637,1752741050469,-672.0,0.00020822,2]
[372686639,1752741050479,-151.0,0.00020822,2]
[372686641,1752741050488,-168.0,0.00020828,2]
[372686643,1752741050497,-151.0,0.00020831,2]
[372686645,1752741050507,-151.0,0.00020831,2]
[372686647,1752741050516,-151.0,0.00020831,2]
[372686649,1752741050525,-151.0,0.00020831,2]
[372686651,1752741050534,-151.0,0.00020831,2]
[372686653,1752741050543,-151.0,0.00020831,2]
[372686655,1752741050553,-247.183272,0.00020831,2]
[372686657,1752741050565,-247.183272,0.00020831,2]
[372686659,1752741050575,-171.19258,0.00020831,2]
[372686661,1752741050584,-171.19258,0.00020831,2]
[372686663,1752741050594,-261.683687,0.00020831,2]
[372686665,1752741050603,-261.683687,0.00020831,2]
[372686667,1752741050613,-360.0,0.00020837,2]
[372686669,1752741050623,-1320.15973591,0.00020868,2]
[372686671,1752741050632,-317.0,0.00020883,2]
[372686673,1752741050642,-168.0,0.00020896,2]
[372686675,1752741050651,-389.9,0.00020949,4]
[372686677,1752741050661,-168.0,0.00020951,2]
[372686679,1752741050672,-460.0,0.00020995,2]
[372686681,1752741050681,-1544.86,0.00020995,2]
[372686683,1752741050690,-4127.19,0.00020997,2]
[372686685,1752741050700,-3032.58,0.00020997,2]
[372686687,1752741050710,-1391.3,0.00020997,2]
[372686689,1752741050719,-636.0,0.00020997,2]
[372686691,1752741050728,-460.0,0.00020997,2]
[372686693,1752741050738,-1999.44,0.00020997,2]
[372686695,1752741050747,-989.32,0.00020997,2]
[372686697,1752741050756,-799.42,0.00020997,2]
[372686699,1752741050765,-460.0,0.00020998,2]
[372686701,1752741050775,-460.0,0.00020999,2]
[372686703,1752741050784,-660.61,0.00020999,2]
[372686705,1752741050793,-555.36,0.00020999,2]
[372686707,1752741050802,-752.55,0.00020999,2]
[372686709,1752741050817,-479.57,0.00020999,2]
[372686711,1752741050828,-460.0,0.00020999,2]
[372686713,1752741050836,-460.0,0.00020999,2]
[372686715,1752741050845,-532.92,0.00020999,2]
[372686717,1752741050854,-460.0,0.00020999,2]
[372686719,1752741050865,-57616.33593792,0.00021,3]
[372686722,1752741050876,-151.0,0.00021,2]
[372686723,1752741050885,-155.906261,0.00021,2]
[372686725,1752741050895,-151.0,0.00021,2]
[372686727,1752741050905,-151.0,0.00021,2]
[372686729,1752741050914,-151.0,0.00021,2]
[372686731,1752741050922,-151.0,0.00021,2]
[372686733,1752741050932,-151.0,0.00021,2]
[372686735,1752741050941,-189.144052,0.00021,2]
[372686737,1752741050950,-189.144052,0.00021,2]
[372686739,1752741050959,-151.0,0.00021,2]
[372686741,1752741050969,-151.0,0.00021,3]
[372686743,1752741050978,-151.0,0.00021,2]
[372686745,1752741050987,-220.226394,0.00021,2]
[372686747,1752741050996,-151.0,0.00021,2]
[372686749,1752741051006,-151.0,0.00021,2]
[372686751,1752741051015,-151.0,0.00021,2]
[372686753,1752741051024,-2390.040963,0.00021,2]
[372686755,1752741051034,-2390.040963,0.00021,2]
[372686757,1752741051044,-201.96193805,0.00021,2]
[372686759,1752741051053,-151.0,0.00021,2]
[372686761,1752741051065,-151.0,0.00021,2]
[372686763,1752741051075,-151.0,0.00021,2]
[372686765,1752741051084,-405.404634,0.00021,2]
[372686767,1752741051094,-151.0,0.00021,2]
[372686769,1752741051103,-405.404634,0.00021,2]
[372686771,1752741051112,-151.0,0.00021,2]
[372686773,1752741051122,-151.0,0.00021,2]
[372686775,1752741051132,-151.0,0.00021,2]
[372686777,1752741051141,-151.0,0.00021004,2]
[372686779,1752741051150,-2933.94,0.00021004,2]
[372686781,1752741051160,-660.52,0.00021004,2]
[372686783,1752741051170,-460.0,0.00021004,2]
[372686798,1752741051292,-1144.87,0.00021004,2]
[372686800,1752741051317,-1120.3,0.00021004,2]
[372686801,1752741051327,-1925.87,0.00021004,2]
[372686802,1752741051338,-721.79,0.00021004,2]
[372686803,1752741051348,-460.0,0.00021004,2]
[372686804,1752741051357,-569.8,0.00021005,2]
[372686805,1752741051367,-565.69,0.00021005,2]
[372686806,1752741051377,-513.02,0.00021005,2]
[372686807,1752741051387,-420.76297026,0.00021005,2]
[372686808,1752741051396,-460.0,0.00021005,2]
[372686809,1752741051406,-460.0,0.00021005,2]
[372686810,1752741051415,-616.29,0.00021005,2]
[372686811,1752741051425,-460.0,0.00021005,2]
[372686812,1752741051434,-460.0,0.00021005,2]
[372686814,1752741051444,-460.0,0.00021005,2]
[372686815,1752741051453,-1151.77,0.00021006,2]
[372686816,1752741051462,-274.124406,0.00021006,2]
[372686818,1752741051472,-274.124406,0.00021006,2]
[372686820,1752741051481,-544.433851,0.00021006,2]
[372686822,1752741051490,-544.433851,0.00021006,2]
[372686824,1752741051500,-152.174213,0.00021006,2]
[372686826,1752741051508,-152.174213,0.00021006,2]
[372686827,1752741051518,-2936.59,0.00021006,2]
[372686829,1752741051527,-151.0,0.00021006,2]
[372686831,1752741051537,-964.0,0.00021006,2]
[372686833,1752741051546,-1867.6100132,0.00021012,2]
[372686835,1752741051556,-168.0,0.00021054,2]
[372686837,1752741051566,-1001.46886915,0.00021068,2]
[372686839,1752741051576,-586.31190994,0.00021068,2]
[372686841,1752741051586,-501.24102348,0.00021068,2]
[372686843,1752741051595,-1167.95118347,0.00021068,2]
[372686845,1752741051604,-1173.26477435,0.00021068,2]
[372686847,1752741051613,-1605.85948016,0.00021068,2]
[372686849,1752741051623,-338.65287852,0.00021068,2]
[372686851,1752741051632,-1500.0,0.00021068,2]
[372686853,1752741051641,-1500.0,0.00021068,2]
[372686855,1752741051650,-1500.0,0.00021068,2]
[372686857,1752741051660,-1500.0,0.00021068,2]
[372686859,1752741051669,-1500.0,0.00021068,2]
[372686861,1752741051679,-502.86450352,0.00021068,2]
[372686862,1752741051689,-1500.0,0.00021068,2]
[372686864,1752741051698,-1500.0,0.00021068,2]
[372686866,1752741051708,-1500.0,0.00021068,2]
[372686868,1752741051717,-1504.0597277,0.00021068,2]
[372686870,1752741051726,-618.0,0.00021096,2]
[372686872,1752741051736,-672.0,0.00021096,2]
[372686874,1752741051745,-408.454844,0.00021107,2]
[372686876,1752741051754,-408.454844,0.00021107,2]
[372686878,1752741051764,-1657.09429368,0.00021128,2]
[372686880,1752741051773,-168.0,0.00021169,2]
[372686882,1752741051782,-616.39609312,0.00021192,2]
[372686884,1752741051792,-883.0,0.00021212,2]
[372686886,1752741051802,-151.0,0.00021254,2]
[372686888,1752741051813,-151.0,0.00021254,2]
[372686890,1752741051823,-151.0,0.00021254,2]
[372686892,1752741051832,-151.0,0.00021254,2]
[372686894,1752741051842,-151.0,0.00021254,2]
[372686895,1752741051851,-171.56638,0.00021254,2]
[372686897,1752741051860,-171.56638,0.00021254,2]
[372686899,1752741051870,-460.0,0.00021269,2]
[372686901,1752741051880,-1544.86,0.00021269,2]
[372686903,1752741051890,-4127.19,0.00021271,2]
[372686905,1752741051901,-3032.58,0.00021271,2]
[372686907,1752741051910,-1391.3,0.00021271,2]
[372686909,1752741051919,-636.0,0.00021271,2]
[372686911,1752741051930,-460.0,0.00021271,2]
[372686913,1752741051939,-1999.44,0.00021271,2]
[372686915,1752741051948,-989.32,0.00021271,2]
[372686917,1752741051958,-799.42,0.00021271,2]
[372686919,1752741051967,-460.0,0.00021273,2]
[372686921,1752741051976,-460.0,0.00021273,2]
[372686923,1752741051987,-660.61,0.00021273,2]
[372686925,1752741051997,-555.36,0.00021273,2]
[372686927,1752741052006,-752.55,0.00021273,2]
[372686929,1752741052016,-479.57,0.00021273,2]